fUSD/lending_fUSD_20250519
["ID","MTS","AMOUNT","RATE_DAILY","PERIOD"]
[361615992,1747642256625,-420.0,0.00013808,2]
[361615993,1747642256634,-420.0,0.00013808,2]
[361615994,1747642256644,-549.38,0.00013808,2]
[361615995,1747642256653,-901.02,0.00013808,2]
[361615996,1747642256662,-46.34927601,0.00013808,2]
[361615997,1747642256987,-191.79611596,0.00013808,2]
[361615998,1747642257012,-181.85460803,0.00013808,2]
[361615999,1747642257022,-420.0,0.00013808,2]
[361616000,1747642257031,-482.75,0.00013808,2]
[361616001,1747642257041,-420.0,0.00013808,2]
[361616002,1747642257052,-420.0,0.00013808,2]
[361616003,1747642257061,-233.23292197,0.00013808,2]
[361616004,1747642258585,-381.5,0.00013693,2]
[361616005,1747642258638,-459.5,0.00013693,2]
[361616006,1747642258648,-420.0,0.00013698,2]
[361616007,1747642258657,-420.0,0.00013698,2]
[361616008,1747642258667,-420.0,0.00013698,2]
[361616009,1747642258677,-420.0,0.00013698,2]
[361616010,1747642258687,-151.0,0.000138,2]
[361616011,1747642258697,-203.94415421,0.00013808,2]
[361616012,1747642258707,-420.0,0.00013808,2]
[361616013,1747642258717,-456.98,0.00013808,2]
[361616014,1747642258726,-667.232546,0.00013808,2]
[361616015,1747642258736,-667.232546,0.00013808,2]
[361616016,1747642258746,-420.0,0.00013808,2]
[361616017,1747642258756,-667.232546,0.00013808,2]
[361616018,1747642258766,-298.377934,0.00013808,2]
[361616019,1747642258776,-298.377934,0.00013808,2]
[361616020,1747642258786,-513.9,0.00013808,2]
[361616021,1747642258796,-151.0,0.00013808,2]
[361616022,1747642258806,-151.0,0.00013808,2]
[361616023,1747642258815,-1320.6,0.00013808,2]
[361616024,1747642258826,-667.232546,0.00013808,2]
[361616025,1747642258836,-667.232546,0.00013808,2]
[361616026,1747642258845,-667.232546,0.00013808,2]
[361616027,1747642258858,-421.02,0.00013808,2]
[361616028,1747642258868,-298.377934,0.00013808,2]
[361616029,1747642258879,-298.377934,0.00013808,2]
[361616030,1747642258889,-420.0,0.00013808,2]
[361616031,1747642258898,-420.0,0.00013808,2]
[361616032,1747642258908,-608.02,0.00013808,2]
[361616033,1747642258919,-420.0,0.00013808,2]
[361616034,1747642258928,-529.34,0.00013808,2]
[361616035,1747642258938,-420.0,0.00013808,2]
[361616036,1747642258947,-151.0,0.00013808,2]
[361616037,1747642258957,-151.0,0.00013808,2]
[361616038,1747642258967,-612.95,0.00013808,2]
[361616039,1747642258977,-420.0,0.00013808,2]
[361616040,1747642258986,-420.0,0.00013808,2]
[361616041,1747642258995,-151.0,0.00013808,2]
[361616042,1747642259008,-671.15,0.00013808,2]
[361616043,1747642259018,-270.428826,0.00013808,2]
[361616044,1747642259028,-270.428826,0.00013808,2]
[361616045,1747642259038,-270.428826,0.00013808,2]
[361616046,1747642259047,-420.0,0.00013808,2]
[361616047,1747642259057,-151.0,0.00013808,2]
[361616048,1747642259067,-151.0,0.00013808,2]
[361616049,1747642259076,-151.0,0.00013808,2]
[361616050,1747642259086,-451.86,0.00013808,2]
[361616051,1747642259096,-270.428826,0.00013808,2]
[361616052,1747642259107,-270.428826,0.00013808,2]
[361616053,1747642259118,-728.98,0.00013808,2]
[361616054,1747642259128,-270.428826,0.00013808,2]
[361616055,1747642259138,-151.0,0.00013808,2]
[361616056,1747642259149,-420.0,0.00013808,2]
[361616057,1747642259159,-472.1,0.00013808,2]
[361616058,1747642259170,-420.0,0.00013808,2]
[361616059,1747642259179,-1474.92,0.00013808,2]
[361616060,1747642259190,-810.71,0.00013808,2]
[361616061,1747642259200,-420.0,0.00013808,2]
[361616062,1747642259210,-420.0,0.00013808,2]
[361616063,1747642259219,-320.0,0.00013808,2]
[361616064,1747642259229,-420.0,0.00013808,2]
[361616065,1747642259238,-833.81,0.00013808,2]
[361616066,1747642259248,-420.0,0.00013808,2]
[361616067,1747642259258,-420.0,0.00013808,2]
[361616068,1747642259268,-420.0,0.00013808,2]
[361616069,1747642259279,-1063.94,0.00013808,2]
[361616070,1747642259289,-420.0,0.00013808,2]
[361616071,1747642259299,-420.0,0.00013808,2]
[361616072,1747642259310,-420.0,0.00013808,2]
[361616073,1747642259320,-1202.23,0.00013808,2]
[361616074,1747642259332,-340.0,0.00013808,2]
[361616075,1747642259343,-420.0,0.00013808,2]
[361616076,1747642259353,-230.045535,0.00013808,2]
[361616077,1747642259363,-230.045535,0.00013808,2]
[361616078,1747642259373,-743.54,0.00013808,2]
[361616079,1747642259384,-340.0,0.00013808,2]
[361616080,1747642259394,-1006.35,0.00013808,2]
[361616081,1747642259404,-420.0,0.00013808,2]
[361616082,1747642259415,-230.045535,0.00013808,2]
[361616083,1747642259425,-230.045535,0.00013808,2]
[361616084,1747642259436,-420.0,0.00013808,2]
[361616085,1747642259446,-565.3,0.00013808,2]
[361616086,1747642259456,-420.0,0.00013808,2]
[361616087,1747642259466,-420.0,0.00013808,2]
[361616088,1747642259476,-420.0,0.00013808,2]
[361616089,1747642259486,-1032.11,0.00013808,2]
[361616090,1747642259496,-695.41,0.00013808,2]
[361616091,1747642259506,-420.0,0.00013808,2]
[361616092,1747642259516,-420.0,0.00013808,2]
[361616093,1747642259526,-420.0,0.00013808,2]
[361616094,1747642259535,-420.0,0.00013808,2]
[361616095,1747642259545,-500.39,0.00013808,2]
[361616096,1747642259556,-151.0,0.00013808,2]
[361616097,1747642259566,-151.0,0.00013808,2]
[361616098,1747642259576,-420.0,0.00013808,2]
[361616099,1747642259586,-420.0,0.00013808,2]
[361616100,1747642259596,-1053.4,0.00013808,2]
[361616101,1747642259605,-340.0,0.00013808,2]
[361616102,1747642259615,-420.0,0.00013808,2]
[361616103,1747642259625,-340.0,0.00013808,2]
[361616104,1747642259636,-420.0,0.00013808,2]
[361616105,1747642259646,-420.0,0.00013808,2]
[361616106,1747642259656,-1378.58,0.00013808,2]
[361616107,1747642259665,-473.51,0.00013808,2]
[361616108,1747642259675,-818.67,0.00013808,2]
[361616109,1747642259685,-420.0,0.00013808,2]
[361616110,1747642259694,-477.42,0.00013808,2]
[361616111,1747642259704,-947.8,0.00013808,2]
[361616112,1747642259714,-420.0,0.00013808,2]
[361616113,1747642259724,-635.45,0.00013808,2]
[361616114,1747642259735,-340.0,0.00013808,2]
[361616115,1747642259744,-420.0,0.00013808,2]
[361616116,1747642259754,-340.0,0.00013808,2]
[361616117,1747642259763,-340.0,0.00013808,2]
[361616118,1747642259772,-420.0,0.00013808,2]
[361616119,1747642259782,-420.0,0.00013808,2]
[361616120,1747642259791,-903.21,0.00013808,2]
[361616121,1747642259801,-420.0,0.00013808,2]
[361616122,1747642259811,-420.0,0.00013808,2]
[361616123,1747642259820,-1365.4,0.00013808,2]
[361616124,1747642259829,-387.77722708,0.00013808,2]
[361616125,1747642259839,-899.76,0.00013808,2]
[361616126,1747642259848,-340.0,0.00013808,2]
[361616127,1747642259858,-340.0,0.00013808,2]
[361616128,1747642259868,-420.0,0.00013808,2]
[361616129,1747642259878,-468.79,0.00013808,2]
[361616130,1747642259887,-481.48,0.00013808,2]
[361616131,1747642259896,-849.85,0.00013808,2]
[361616132,1747642259906,-360.0,0.00013808,2]
[361616133,1747642259915,-420.0,0.00013808,2]
[361616134,1747642259925,-431.1,0.00013808,2]
[361616135,1747642259934,-1076.95,0.00013808,2]
[361616136,1747642259944,-420.0,0.00013808,2]
[361616137,1747642259953,-320.0,0.00013808,2]
[361616138,1747642259963,-420.0,0.00013808,2]
[361616139,1747642259973,-420.0,0.00013808,2]
[361616140,1747642259982,-536.16,0.00013808,2]
[361616141,1747642259991,-420.0,0.00013808,2]
[361616142,1747642260000,-453.91,0.00013808,2]
[361616143,1747642260010,-489.99445656,0.00013808,2]
[361616144,1747642260019,-420.0,0.00013808,2]
[361616145,1747642260029,-1544.05,0.00013808,2]
[361616146,1747642260039,-420.0,0.00013808,2]
[361616147,1747642260050,-993.59,0.00013808,2]
[361616148,1747642260059,-450.9161761,0.00013808,2]
[361616149,1747642260068,-420.0,0.00013808,2]
[361616151,1747642260078,-420.0,0.00013808,2]
[361616152,1747642260088,-1006.93,0.00013808,2]
[361616153,1747642260098,-420.0,0.00013808,2]
[361616154,1747642260111,-509.16,0.00013808,2]
[361616155,1747642260120,-420.0,0.00013808,2]
[361616156,1747642260130,-420.0,0.00013808,2]
[361616157,1747642260140,-851.61,0.00013808,2]
[361616158,1747642260150,-420.0,0.00013808,2]
[361616159,1747642260526,-420.0,0.00013808,2]
[361616160,1747642260536,-420.0,0.00013808,2]
[361616161,1747642260546,-420.0,0.00013808,2]
[361616162,1747642260556,-420.0,0.00013808,2]
[361616163,1747642260566,-733.17,0.00013808,2]
[361616164,1747642260576,-488.44,0.00013808,2]
[361616165,1747642260585,-420.0,0.00013808,2]
[361616166,1747642260595,-207.843844,0.00013808,2]
[361616167,1747642260604,-207.843844,0.00013808,2]
[361616168,1747642260613,-151.0,0.00013808,2]
[361616169,1747642260623,-151.0,0.00013808,2]
[361616170,1747642260636,-1125.26,0.00013808,2]
[361616171,1747642260646,-207.843844,0.00013808,2]
[361616172,1747642260655,-580.48,0.00013808,2]
[361616173,1747642260665,-207.843844,0.00013808,2]
[361616174,1747642260675,-420.0,0.00013808,2]
[361616175,1747642260684,-630.02,0.00013808,2]
[361616176,1747642260693,-420.0,0.00013808,2]
[361616177,1747642260702,-420.0,0.00013808,2]
[361616178,1747642260711,-420.0,0.00013808,2]
[361616179,1747642260720,-151.0,0.00013808,2]
[361616180,1747642260729,-151.0,0.00013808,2]
[361616181,1747642260739,-476.99,0.00013808,2]
[361616182,1747642260748,-420.0,0.00013808,2]
[361616183,1747642260757,-420.0,0.00013808,2]
[361616184,1747642260766,-151.0,0.00013808,2]
[361616185,1747642260775,-179.625528,0.00013808,2]
[361616186,1747642260785,-446.76,0.00013808,2]
[361616187,1747642260794,-420.0,0.00013808,2]
[361616188,1747642260805,-420.0,0.00013808,2]
[361616189,1747642260815,-572.66,0.00013808,2]
[361616190,1747642260824,-1068.15,0.00013808,2]
[361616191,1747642260834,-492.25,0.00013808,2]
[361616192,1747642260844,-420.0,0.00013808,2]
[361616193,1747642260854,-420.0,0.00013808,2]
[361616194,1747642260863,-420.0,0.00013808,2]
[361616195,1747642260873,-196.134542,0.00013808,2]
[361616196,1747642260887,-948.15,0.00013808,2]
[361616197,1747642260896,-504.19,0.00013808,2]
[361616198,1747642260907,-420.0,0.00013808,2]
[361616199,1747642260920,-2040.34,0.00013808,2]
[361616200,1747642260930,-420.0,0.00013808,2]
[361616201,1747642260940,-420.0,0.00013808,2]
[361616202,1747642260950,-420.0,0.00013808,2]
[361616203,1747642260960,-381.17383171,0.00013808,2]
[361616204,1747642260969,-729.58,0.00013808,2]
[361616205,1747642260980,-1354.57,0.00013808,2]
[361616206,1747642260990,-420.0,0.00013808,2]
[361616207,1747642260999,-531.58,0.00013808,2]
[361616208,1747642261009,-541.46,0.00013808,2]
[361616209,1747642261018,-151.0,0.00013808,2]
[361616210,1747642261027,-151.0,0.00013808,2]
[361616211,1747642261036,-1342.61,0.00013808,2]
[361616212,1747642261046,-151.0,0.00013808,2]
[361616213,1747642261056,-802.46,0.00013808,2]
[361616214,1747642261066,-420.0,0.00013808,2]
[361616215,1747642261081,-151.0,0.00013808,2]
[361616216,1747642261092,-1086.98,0.00013808,2]
[361616217,1747642261103,-420.0,0.00013808,2]
[361616218,1747642261118,-420.0,0.00013808,2]
[361616219,1747642261131,-420.0,0.00013808,2]
[361616220,1747642261142,-650.69,0.00013808,2]
[361616221,1747642261153,-460.99736546,0.00013808,2]
[361616222,1747642261164,-420.0,0.00013808,2]
[361616223,1747642261174,-879.12,0.00013808,2]
[361616224,1747642261185,-420.0,0.00013808,2]
[361616225,1747642261195,-427.05,0.00013808,2]
[361616226,1747642261205,-594.2,0.00013808,2]
[361616227,1747642261215,-420.0,0.00013808,2]
[361616228,1747642261226,-420.0,0.00013808,2]
[361616229,1747642261236,-420.0,0.00013808,2]
[361616230,1747642261246,-2418.3,0.00013808,2]
[361616231,1747642261256,-420.0,0.00013808,2]
[361616232,1747642261267,-234.525093,0.00013808,2]
[361616233,1747642261277,-234.525093,0.00013808,2]
[361616234,1747642261289,-420.0,0.00013808,2]
[361616235,1747642261299,-234.525093,0.00013808,2]
[361616236,1747642261309,-839.29,0.00013808,2]
[361616237,1747642261319,-234.525093,0.00013808,2]
[361616238,1747642261330,-234.525093,0.00013808,2]
[361616239,1747642261340,-234.525093,0.00013808,2]
[361616240,1747642261351,-420.0,0.00013808,2]
[361616241,1747642261361,-420.0,0.00013808,2]
[361616242,1747642261371,-459.01,0.00013808,2]
[361616243,1747642261384,-484.95,0.00013808,2]
[361616244,1747642261395,-481.91,0.00013808,2]
[361616245,1747642261405,-423.95,0.00013808,2]
[361616246,1747642261415,-641.89,0.00013808,2]
[361616247,1747642261425,-848.89,0.00013808,2]
[361616248,1747642261435,-5021.17,0.00013808,2]
[361616249,1747642261446,-661.062516,0.00013808,2]
[361616250,1747642261456,-661.062516,0.00013808,2]
[361616251,1747642261467,-420.0,0.00013808,2]
[361616252,1747642261477,-178.269806,0.00013808,2]
[361616253,1747642261488,-574.62,0.00013808,2]
[361616254,1747642261498,-178.269806,0.00013808,2]
[361616255,1747642261508,-420.0,0.00013808,2]
[361616256,1747642261518,-151.0,0.00013808,2]
[361616257,1747642261528,-151.0,0.00013808,2]
[361616258,1747642261538,-151.0,0.00013808,2]
[361616259,1747642261548,-178.269806,0.00013808,2]
[361616260,1747642261559,-178.269806,0.00013808,2]
[361616261,1747642261569,-661.062516,0.00013808,2]
[361616262,1747642261579,-661.062516,0.00013808,2]
[361616263,1747642261590,-554.11,0.00013808,2]
[361616264,1747642261599,-420.0,0.00013808,2]
[361616265,1747642261610,-596.76,0.00013808,2]
[361616266,1747642261620,-55251.6547043,0.00013808,2]
[361616267,1747642261646,-129349.9052957,0.00013808,2]
[361616268,1747642261656,-999.18,0.00013808,2]
[361616269,1747642261666,-635.35,0.00013808,2]
[361616270,1747642261676,-420.0,0.00013808,2]
[361616271,1747642261686,-1028.2,0.00013808,2]
[361616272,1747642261697,-400.0,0.00013808,2]
[361616273,1747642261707,-8485.96,0.00013808,2]
[361616274,1747642261717,-151.841595,0.00013808,2]
[361616275,1747642261727,-420.0,0.00013808,2]
[361616276,1747642261737,-1095.92,0.00013808,2]
[361616277,1747642261747,-1237.32,0.00013808,2]
[361616278,1747642261758,-420.0,0.00013808,2]
[361616279,1747642261769,-420.0,0.00013808,2]
[361616280,1747642261779,-762.68,0.00013808,2]
[361616281,1747642261789,-151.0,0.00013808,2]
[361616282,1747642261799,-151.0,0.00013808,2]
[361616283,1747642261809,-1265.83,0.00013808,2]
[361616284,1747642261820,-420.0,0.00013808,2]
[361616285,1747642261830,-340.0,0.00013808,2]
[361616286,1747642261840,-629.74,0.00013808,2]
[361616287,1747642261851,-1135.53,0.00013808,2]
[361616288,1747642261861,-420.0,0.00013808,2]
[361616289,1747642261871,-2743.04,0.00013808,2]
[361616290,1747642261882,-360.0,0.00013808,2]
[361616291,1747642261893,-8084.02,0.00013808,2]
[361616292,1747642261903,-380.0,0.00013808,2]
[361616293,1747642261914,-721.93,0.00013808,2]
[361616294,1747642261924,-420.0,0.00013808,2]
[361616295,1747642261935,-420.0,0.00013808,2]
[361616296,1747642261945,-892.4,0.00013808,2]
[361616297,1747642261955,-1273.39,0.00013808,2]
[361616298,1747642261965,-3900.21,0.00013808,2]
[361616299,1747642261977,-368.677,0.00013808,2]
[361616300,1747642261987,-654.92,0.00013808,2]
[361616301,1747642261997,-420.0,0.00013808,2]
[361616302,1747642262008,-151.0,0.00013808,2]
[361616303,1747642262018,-151.0,0.00013808,2]
[361616304,1747642262029,-578.29,0.00013808,2]
[361616305,1747642262039,-1753.51,0.00013808,2]
[361616306,1747642262050,-433.62,0.00013808,2]
[361616307,1747642262061,-470.6,0.00013808,2]
[361616308,1747642262072,-151.0,0.00013808,2]
[361616309,1747642262083,-151.0,0.00013808,2]
[361616310,1747642262094,-420.0,0.00013808,2]
[361616311,1747642262105,-420.0,0.00013808,2]
[361616312,1747642262120,-416.57150316,0.00013808,2]
[361616313,1747642262135,-420.0,0.00013808,2]
[361616314,1747642262146,-600.14,0.00013808,2]
[361616315,1747642262157,-1081.19,0.00013808,2]
[361616316,1747642262169,-808.17,0.00013808,2]
[361616317,1747642262179,-19549.46,0.00013808,2]
[361616318,1747642262189,-403.53732409,0.00013808,2]
[361616319,1747642262199,-1930.53,0.00013808,2]
[361616320,1747642262209,-344.44713037,0.00013808,2]
[361616321,1747642262219,-1451.26,0.00013808,2]
[361616322,1747642262228,-420.0,0.00013808,2]
[361616323,1747642262238,-743.7,0.00013808,2]
[361616324,1747642262249,-420.0,0.00013808,2]
[361616325,1747642262259,-420.0,0.00013808,2]
[361616326,1747642262270,-1426.11,0.00013808,2]
[361616327,1747642262280,-420.0,0.00013808,2]
[361616328,1747642262290,-764.6,0.00013808,2]
[361616329,1747642262300,-1357.96,0.00013808,2]
[361616330,1747642262310,-1157.59,0.00013808,2]
[361616331,1747642262320,-151.0,0.00013808,2]
[361616332,1747642262331,-151.0,0.00013808,2]
[361616333,1747642262341,-151.0,0.00013808,2]
[361616334,1747642262351,-420.0,0.00013808,2]
[361616335,1747642262362,-177.16990507,0.00013808,2]
[361616336,1747642262372,-783.99,0.00013808,2]
[361616337,1747642262389,-420.0,0.00013808,2]
[361616338,1747642262400,-420.0,0.00013808,2]
[361616339,1747642262412,-813.36,0.00013808,2]
[361616340,1747642262423,-420.0,0.00013808,2]
[361616341,1747642262434,-10688.02,0.00013808,2]
[361616342,1747642262444,-384.74975355,0.00013808,2]
[361616343,1747642262454,-464.7823281,0.00013808,2]
[361616344,1747642262465,-420.0,0.00013808,2]
[361616345,1747642262475,-1134.42,0.00013808,2]
[361616346,1747642262485,-221.845048,0.00013808,2]
[361616347,1747642262496,-706.36,0.00013808,2]
[361616348,1747642262506,-221.845048,0.00013808,2]
[361616349,1747642262516,-1083.04,0.00013808,2]
[361616350,1747642262526,-221.845048,0.00013808,2]
[361616351,1747642262536,-420.0,0.00013808,2]
[361616352,1747642262546,-400.0,0.00013808,2]
[361616353,1747642262556,-173.30783296,0.00013808,2]
[361616354,1747642262566,-1407.85,0.00013808,2]
[361616355,1747642262577,-221.845048,0.00013808,2]
[361616356,1747642262587,-221.845048,0.00013808,2]
[361616357,1747642262596,-859.9,0.00013808,2]
[361616358,1747642262607,-221.845048,0.00013808,2]
[361616359,1747642262617,-420.0,0.00013808,2]
[361616360,1747642262628,-380.0,0.00013808,2]
[361616361,1747642262646,-420.0,0.00013808,2]
[361616362,1747642262658,-151.0,0.00013808,2]
[361616363,1747642262669,-1213.9,0.00013808,2]
[361616364,1747642262683,-151.0,0.00013808,2]
[361616365,1747642262694,-420.0,0.00013808,2]
[361616366,1747642262706,-151.0,0.00013808,2]
[361616367,1747642262718,-16755.71,0.00013808,2]
[361616368,1747642262729,-1815.66,0.00013808,2]
[361616369,1747642262740,-420.0,0.00013808,2]
[361616370,1747642262751,-751.17,0.00013808,2]
[361616371,1747642262763,-151.0,0.00013808,2]
[361616372,1747642262775,-1475.96,0.00013808,2]
[361616373,1747642262787,-2689.41,0.00013808,2]
[361616374,1747642262798,-151.0,0.00013808,2]
[361616375,1747642262810,-151.0,0.00013808,2]
[361616376,1747642262821,-465.84,0.00013808,2]
[361616377,1747642262833,-400.0,0.00013808,2]
[361616378,1747642262844,-530.54,0.00013808,2]
[361616379,1747642262855,-151.0,0.00013808,2]
[361616380,1747642262866,-151.0,0.00013808,2]
[361616381,1747642262879,-380.77170961,0.00013808,2]
[361616382,1747642262898,-151.0,0.00013808,2]
[361616383,1747642262910,-151.0,0.00013808,2]
[361616384,1747642262922,-151.0,0.00013808,2]
[361616385,1747642262933,-151.0,0.00013808,2]
[361616386,1747642262945,-420.0,0.00013808,2]
[361616387,1747642262956,-151.0,0.00013808,2]
[361616388,1747642262968,-420.0,0.00013808,2]
[361616389,1747642262978,-81329.74,0.00013808,2]
[361616390,1747642262990,-494.57,0.00013808,2]
[361616391,1747642263003,-420.0,0.00013808,2]
[361616392,1747642263014,-420.0,0.00013808,2]
[361616393,1747642263024,-1303.53,0.00013808,2]
[361616394,1747642263035,-574.72,0.00013808,2]
[361616395,1747642263046,-9031.63,0.00013808,2]
[361616396,1747642263058,-491.39,0.00013808,2]
[361616397,1747642263073,-500.0,0.00013808,2]
[361616398,1747642263084,-360.0,0.00013808,2]
[361616399,1747642263097,-420.0,0.00013808,2]
[361616400,1747642263114,-4086.19,0.00013808,2]
[361616401,1747642263126,-562.84,0.00013808,2]
[361616402,1747642263144,-3357.78,0.00013808,2]
[361616403,1747642263157,-420.0,0.00013808,2]
[361616404,1747642263169,-275.66,0.00013808,2]
[361616405,1747642263180,-1074.51,0.00013808,2]
[361616406,1747642263191,-420.0,0.00013808,2]
[361616407,1747642263202,-3081.93,0.00013808,2]
[361616408,1747642263214,-420.0,0.00013808,2]
[361616409,1747642263225,-420.0,0.00013808,2]
[361616410,1747642263236,-420.0,0.00013808,2]
[361616411,1747642263247,-574.95,0.00013808,2]
[361616412,1747642263258,-789.72,0.00013808,2]
[361616413,1747642263269,-2015.34,0.00013808,2]
[361616414,1747642263280,-1255.45,0.00013808,2]
[361616415,1747642263290,-420.0,0.00013808,2]
[361616416,1747642263301,-420.0,0.00013808,2]
[361616417,1747642263311,-1352.3,0.00013808,2]
[361616418,1747642263321,-601.18,0.00013808,2]
[361616419,1747642263332,-420.0,0.00013808,2]
[361616420,1747642263343,-420.0,0.00013808,2]
[361616421,1747642263353,-1819.66,0.00013808,2]
[361616422,1747642263364,-477.12,0.00013808,2]
[361616423,1747642263375,-2475.76,0.00013808,2]
[361616424,1747642263391,-420.0,0.00013808,2]
[361616425,1747642263403,-820.58,0.00013808,2]
[361616426,1747642263413,-4426.98,0.00013808,2]
[361616427,1747642263423,-1471.81,0.00013808,2]
[361616428,1747642263434,-1520.11,0.00013808,2]
[361616429,1747642263444,-637.26,0.00013808,2]
[361616430,1747642263454,-420.0,0.00013808,2]
[361616431,1747642263464,-420.0,0.00013808,2]
[361616432,1747642263475,-1154.63,0.00013808,2]
[361616433,1747642263485,-420.0,0.00013808,2]
[361616434,1747642263494,-404.61392074,0.00013808,2]
[361616435,1747642263505,-420.0,0.00013808,2]
[361616436,1747642263514,-420.0,0.00013808,2]
[361616437,1747642263524,-420.0,0.00013808,2]
[361616438,1747642263535,-657.78,0.00013808,2]
[361616439,1747642263546,-4541.17,0.00013808,2]
[361616440,1747642263556,-1304.63,0.00013808,2]
[361616441,1747642263566,-420.0,0.00013808,2]
[361616442,1747642263576,-1210.38,0.00013808,2]
[361616443,1747642263586,-794.08,0.00013808,2]
[361616444,1747642263596,-340.0,0.00013808,2]
[361616445,1747642263606,-568.47,0.00013808,2]
[361616446,1747642263616,-2433.91,0.00013808,2]
[361616447,1747642263626,-420.0,0.00013808,2]
[361616448,1747642263639,-1188.46,0.00013808,2]
[361616449,1747642263650,-1180.53,0.00013808,2]
[361616450,1747642263661,-592.72,0.00013808,2]
[361616451,1747642263673,-1042.85,0.00013808,2]
[361616452,1747642263683,-583.48,0.00013808,2]
[361616453,1747642263693,-420.0,0.00013808,2]
[361616454,1747642263703,-360.0,0.00013808,2]
[361616455,1747642263713,-680.62,0.00013808,2]
[361616456,1747642263723,-509.05,0.00013808,2]
[361616457,1747642263733,-151.0,0.00013808,2]
[361616458,1747642263743,-642.17,0.00013808,2]
[361616459,1747642263754,-151.0,0.00013808,2]
[361616460,1747642263763,-151.0,0.00013808,2]
[361616461,1747642263773,-963.91,0.00013808,2]
[361616462,1747642263783,-420.0,0.00013808,2]
[361616463,1747642263794,-420.0,0.00013808,2]
[361616464,1747642263803,-1598.58,0.00013808,2]
[361616465,1747642263814,-420.0,0.00013808,2]
[361616466,1747642263824,-1398.76,0.00013808,2]
[361616467,1747642263834,-420.0,0.00013808,2]
[361616468,1747642263843,-420.0,0.00013808,2]
[361616469,1747642263853,-3239.7,0.00013808,2]
[361616470,1747642263862,-420.0,0.00013808,2]
[361616471,1747642263872,-9175.089314,0.00013808,2]
[361616472,1747642263883,-9175.089314,0.00013808,2]
[361616473,1747642263893,-9175.089314,0.00013808,2]
[361616474,1747642263903,-151.0,0.00013808,2]
[361616475,1747642263913,-822.93,0.00013808,2]
[361616476,1747642263922,-766.75,0.00013808,2]
[361616477,1747642263932,-768.34,0.00013808,2]
[361616478,1747642263942,-2253.56321243,0.00013808,2]
[361616479,1747642263961,-463.99678757,0.00013808,2]
[361616480,1747642263971,-420.0,0.00013808,2]
[361616481,1747642263981,-9175.089314,0.00013808,2]
[361616482,1747642263991,-151.0,0.00013808,2]
[361616483,1747642264000,-9175.089314,0.00013808,2]
[361616484,1747642264010,-151.0,0.00013808,2]
[361616485,1747642264023,-9175.089314,0.00013808,2]
[361616486,1747642264033,-151.0,0.00013808,2]
[361616487,1747642264045,-862.38,0.00013808,2]
[361616488,1747642264056,-869.26,0.00013808,2]
[361616489,1747642264066,-1205.91,0.00013808,2]
[361616490,1747642264076,-657.33,0.00013808,2]
[361616491,1747642264086,-648.42,0.00013808,2]
[361616492,1747642264100,-420.0,0.00013808,2]